bitfinex-derivatives/quotes_SOLF0:USTF0_20240815
["timestamp","ask_amount","ask_price","bid_price","bid_amount"]
[1723751536216,3.5802,139.64,139.6,1.6503]
[1723751536412,31.01,139.66,139.6,1.6503]
[1723751536719,228.0,139.74,139.63,3.5801]
[1723751536720,3.579,139.69,139.63,3.5801]
[1723751536916,0.05240853,139.67,139.64,0.05257211]
[1723751537315,3.5796,139.66,139.64,0.05257211]
[1723751537517,0.05240853,139.67,139.64,0.05257211]
[1723751540122,0.05240853,139.67,139.64,3.63257211]
[1723751540418,0.05240853,139.67,139.64,0.05257211]
[1723751541216,3.63180853,139.67,139.64,0.05257211]
[1723751541620,0.05240853,139.67,139.64,0.05257211]
[1723751542323,0.05240853,139.67,139.66,3.5796]
[1723751542622,34.58316838,139.75,139.64,0.05257211]
[1723751542825,31.01,139.75,139.64,3.6085618]
[1723751543023,31.01,139.77,139.65,31.01]
[1723751543229,228.0,139.81,139.67,31.01]
[1723751543230,31.01,139.79,139.67,31.01]
[1723751543629,31.01,139.79,139.67,34.63935703]
[1723751543926,31.01,139.82,139.72,0.05495658]
[1723751544221,0.05172569,139.74,139.72,0.05495658]
[1723751544531,3.5769,139.77,139.73,3.5778]
[1723751544824,31.01,139.8,139.73,3.5778]
[1723751545023,31.01,139.8,139.68,31.01]
[1723751545224,31.01,139.7,139.55,1.5314]
[1723751545528,3.579,139.68,139.56,31.01]
[1723751545829,31.01,139.7,139.56,31.01]
[1723751546017,31.01,139.67,139.53,60.66672146]
[1723751546221,34.63532655,139.67,139.53,64.18895816]
[1723751546416,3.5803,139.63,139.53,64.18895816]
[1723751546623,31.01,139.62,139.46,1.5314]
[1723751546823,31.01,139.62,139.48,31.01]
[1723751547027,3.5814,139.59,139.48,31.01]
[1723751547526,0.05089591,139.61,139.48,31.01]
[1723751547527,3.5812,139.6,139.48,31.01]
[1723751547828,0.05089591,139.61,139.49,1.66]
[1723751548129,31.01,139.62,139.52,0.04978499]
[1723751548332,31.01,139.62,139.54,3.5824]
[1723751548630,31.01,139.62,139.52,0.04978499]
[1723751548832,0.04765589,139.56,139.49,1.66]
[1723751549131,0.04765589,139.56,139.38,7.48267749]
[1723751549317,0.04765589,139.56,139.47,31.01]
[1723751549518,1.0,139.66,139.44,3.2161]
[1723751549519,3.5803,139.63,139.54,31.01]
[1723751549721,31.01,139.69,139.57,3.5817]
[1723751549917,31.01,139.67,139.57,3.5817]
[1723751550119,3.5801,139.64,139.54,3.55592437]
[1723751550318,3.5801,139.64,139.53,31.01]
[1723751550319,3.5801,139.64,139.55,1.5362]
[1723751550530,31.01,139.75,139.61,31.01]
[1723751550927,31.01,139.75,139.61,3.5808]
[1723751551128,3.5797,139.66,139.61,3.5808]
[1723751551631,0.05459178,139.69,139.62,31.01]
[1723751552028,4.59474393,139.74,139.62,31.01]
[1723751552332,4.59474393,139.74,139.62,0.05487772]
[1723751552333,31.01,139.7,139.62,0.05487772]
[1723751552531,0.04995429,139.67,139.62,0.05487772]
[1723751552720,3.62945429,139.67,139.58,31.01]
[1723751552919,3.62945429,139.67,139.56,1.6045]
[1723751552920,0.04995429,139.67,139.61,31.01]
[1723751553230,0.04995429,139.67,139.66,3.5796]
[1723751553529,31.01,139.78,139.64,31.01]
[1723751553926,42.33,139.82,139.67,31.01]
[1723751554122,31.01,139.79,139.67,31.01]
[1723751554527,31.01,139.76,139.68,3.5789]
[1723751554733,31.01,139.76,139.62,11.32]
[1723751554928,31.01,139.76,139.62,14.81131093]
[1723751555134,0.04526247,139.74,139.72,0.05048251]
[1723751555334,3.5778,139.73,139.72,0.05048251]
[1723751555631,0.04526247,139.74,139.72,0.05048251]
[1723751555836,1.0,139.78,139.65,31.01]
[1723751556132,31.01,139.76,139.65,31.01]
[1723751556334,0.04567094,139.74,139.72,0.04984409]
[1723751556525,3.5778,139.73,139.72,0.04984409]
[1723751556726,0.04567094,139.74,139.62,45.82131093]
[1723751556924,3.5778,139.73,139.72,0.04533856]
[1723751557229,31.01,139.74,139.68,3.579]
[1723751557431,31.0581027,139.74,139.68,3.579]
[1723751557632,31.0581027,139.74,139.71,0.05287357]
[1723751557826,3.5778,139.73,139.71,0.05287357]
[1723751558022,0.0481027,139.74,139.71,0.05287357]
[1723751558621,0.0481027,139.74,139.72,3.578]
[1723751558826,0.0481027,139.74,139.71,0.05287357]
[1723751559729,0.0481027,139.74,139.73,3.5778]
[1723751561133,3.5758,139.81,139.71,0.05287357]
[1723751561332,31.01,139.85,139.72,31.01]
[1723751561532,31.01,139.85,139.78,3.5764]
[1723751561827,3.6255233,139.88,139.69,61.2801]
[1723751561828,31.01,139.82,139.69,61.2801]
[1723751562132,3.6255233,139.88,139.69,1.6501]
[1723751562133,3.5772,139.76,139.69,1.6501]
[1723751562332,31.05727113,139.77,139.74,0.04756317]
[1723751562827,31.05727113,139.77,139.68,11.32]
[1723751562828,31.01,139.75,139.68,11.32]
[1723751563031,31.01,139.75,139.74,0.04683713]
[1723751563227,31.01,139.75,139.62,28.62]
[1723751563440,1.0,139.84,139.62,68.62]
[1723751563737,7.143,139.86,139.62,68.62]
[1723751563945,4.164,140.27,139.89,515.0]
[1723751564139,28.62,140.33,139.89,515.0]
[1723751564140,28.62,140.33,140.26,31.01]
[1723751564433,17.54506244,140.33,139.9,1.5567]
[1723751564633,8.54506244,140.33,140.28,31.01]
[1723751564839,8.54506244,140.33,140.08,28.62]
[1723751565140,5.99886244,140.33,140.27,31.01]
[1723751565335,0.90856244,140.33,140.25,31.01]
[1723751565532,0.90856244,140.33,140.25,34.53195795]
[1723751565738,0.90856244,140.33,140.25,31.01]
[1723751565938,0.90856244,140.33,140.22,31.01]
[1723751566437,0.90856244,140.33,140.25,31.01]
[1723751566645,0.90856244,140.33,140.22,31.01]
[1723751567141,0.05474984,140.29,140.26,0.04639618]
[1723751568738,0.05474984,140.29,140.27,3.5639]
[1723751568938,0.05474984,140.29,140.26,0.04639618]
[1723751569237,0.05474984,140.29,140.27,3.5639]
[1723751569541,0.90856244,140.33,140.27,34.50986377]
[1723751569839,0.90856244,140.33,140.26,0.04639618]
[1723751570140,0.90856244,140.33,140.31,31.01]
[1723751570345,31.01,140.47,140.31,34.65808156]
[1723751570539,31.01,140.47,140.34,31.01]
[1723751570737,31.01,140.47,140.31,34.65808156]
[1723751571135,0.046697,140.4,140.36,31.01]
[1723751571444,0.046697,140.4,140.39,34.5709]
[1723751571837,0.046697,140.4,140.39,3.5609]
[1723751572039,3.5586,140.49,140.4,3.5607]
[1723751572235,1.02,140.5,140.39,59.55]
[1723751572538,1.02,140.5,140.47,3.5587]
[1723751572736,1.02,140.5,140.46,31.01]
[1723751572936,1.02,140.5,140.49,31.01]
[1723751573141,1.02,140.5,140.49,34.5684]
[1723751573438,0.0534439,140.5,140.47,3.58195222]
[1723751573639,0.0534439,140.5,140.47,0.05236474]
[1723751574343,0.55984529,140.55,140.48,31.01]
[1723751574849,0.55984529,140.55,140.51,31.01]
[1723751575748,0.55984529,140.55,140.44,31.01]
[1723751575749,0.04702136,140.54,140.52,0.04814533]
[1723751576645,0.55984529,140.55,140.43,31.01]
[1723751577148,3.5574,140.53,140.46,3.5591]
[1723751577347,0.55984529,140.55,140.43,31.01]
[1723751578444,3.60560589,140.5,140.48,0.0457063]
[1723751578635,0.04720589,140.5,140.48,0.0457063]
[1723751579042,3.5584,140.49,140.48,0.0457063]
[1723751579240,31.01,140.53,140.48,0.0457063]
[1723751579748,31.01,140.53,140.38,31.01]
[1723751579948,0.05332904,140.5,140.38,31.01]
[1723751580145,3.5592,140.46,140.38,34.571]
[1723751580443,3.5592,140.46,140.33,28.5]
[1723751580444,31.01,140.47,140.34,31.01]
[1723751580648,31.01,140.47,140.33,28.5]
[1723751580649,31.01,140.44,140.3,31.01]
[1723751581038,31.01,140.44,140.3,34.50645156]
[1723751581441,0.05302337,140.42,140.39,0.05350402]
[1723751581835,0.05302337,140.42,140.3,31.01]
[1723751582238,31.01,140.47,140.36,31.01]
[1723751582438,31.01,140.52,140.38,31.01]
[1723751582641,31.01,140.52,140.41,31.01]
[1723751582838,31.01,140.54,140.41,31.01]
[1723751583245,0.55984529,140.55,140.44,31.01]
[1723751583439,0.04843244,140.48,140.45,0.0482337]
[1723751583846,0.04843244,140.48,140.45,31.0582337]
[1723751584046,0.04843244,140.48,140.45,0.0482337]
[1723751584248,30.38599755,140.54,140.45,0.0482337]
[1723751584442,0.55984529,140.55,140.45,0.0482337]
[1723751584443,0.55984529,140.55,140.45,31.01]
[1723751584843,0.55984529,140.55,140.48,31.01]
[1723751585148,0.55984529,140.55,140.45,31.01]
[1723751585149,0.55984529,140.55,140.46,3.5589]
[1723751585343,0.55984529,140.55,140.45,31.01]
[1723751585745,0.55984529,140.55,140.45,34.5694]
[1723751586146,0.05203803,140.53,140.5,0.04810092]
[1723751586743,31.06203803,140.53,140.38,28.48]
[1723751586945,31.06203803,140.53,140.4,31.01]
[1723751587154,31.01,140.51,140.38,32.041]
[1723751587449,31.01,140.48,140.38,28.48]
[1723751587653,1.0,140.52,140.4,31.01]
[1723751587851,31.01,140.53,140.4,31.01]
[1723751589054,0.55984529,140.55,140.45,31.06212733]
[1723751589055,0.05347514,140.47,140.45,31.06212733]
[1723751590055,4.04213074,140.55,140.45,31.01]
[1723751590453,0.05462158,140.47,140.45,31.06097932]
[1723751590952,0.55984529,140.55,140.47,31.01]
[1723751591152,0.55984529,140.55,140.45,31.06097932]
[1723751591357,0.55984529,140.55,140.42,31.01]
[1723751591657,31.01,140.54,140.42,31.01]
[1723751591845,31.01,140.49,140.38,28.48]
[1723751592145,31.01,140.49,140.35,31.01]
[1723751592346,34.3265366,140.49,140.35,31.01]
[1723751592547,31.01,140.47,140.35,31.01]
[1723751592744,31.01,140.45,140.32,31.01]
[1723751592951,1.608,140.46,140.32,31.01]
[1723751593150,1.608,140.46,140.41,0.05334596]
[1723751593958,0.04633562,140.4,140.3,31.01]
[1723751594161,1.532,140.51,140.49,0.61217766]
[1723751594363,0.92737653,140.51,140.49,0.61217766]
[1723751594558,3.5599,140.43,140.42,0.05261835]
[1723751594953,1.0,140.5,140.42,0.05261835]
[1723751595151,3.5597,140.44,140.38,3.561]
[1723751595450,3.50581532,140.49,140.38,3.561]
[1723751595647,32.01,140.5,140.37,34.5714]
[1723751595850,0.04998068,140.47,140.45,0.05457879]
[1723751596250,0.04998068,140.47,140.41,3.5602]
[1723751596446,0.04998068,140.47,140.37,31.01]
[1723751596447,0.92737653,140.51,140.42,31.01]
[1723751596648,3.5588,140.48,140.45,0.04508405]
[1723751596858,0.92737653,140.51,140.45,0.04508405]
[1723751597247,0.04829311,140.48,140.46,3.559]
[1723751597555,0.04829311,140.48,140.45,0.04508405]
[1723751597961,3.5585,140.49,140.43,3.5598]
[1723751598256,3.5585,140.49,140.42,31.01]
[1723751598557,3.61187276,140.48,140.45,0.05041345]
[1723751598757,0.05317276,140.48,140.45,0.05041345]
[1723751599451,1.6165,140.54,140.43,3.5599]
[1723751599648,1.6165,140.54,140.4,31.01]
[1723751599649,31.01,140.5,140.4,31.01]
[1723751600062,31.01,140.5,140.4,34.5706]
[1723751600248,31.01,140.5,140.4,31.01]
[1723751600454,0.05052315,140.48,140.45,0.04702946]
[1723751600755,31.01,140.46,140.33,31.01]
[1723751601361,3.5609,140.4,140.33,31.01]
[1723751601662,31.01,140.46,140.36,3.5615]
[1723751601963,1.0,140.47,140.35,31.01]
[1723751602273,3.5615,140.37,140.35,0.04526054]
[1723751602555,0.05163167,140.38,140.35,0.04526054]
[1723751602958,31.01,140.45,140.34,31.01]
[1723751603159,0.0492579,140.38,140.35,0.04893993]
[1723751603562,31.01,140.45,140.32,31.01]
[1723751603957,0.05435446,140.38,140.35,0.0479576]
[1723751604160,30.70570842,140.45,140.35,0.0479576]
[1723751604363,30.1615473,140.45,140.34,3.562]
[1723751604562,1.0,140.47,140.34,31.01]
[1723751604762,3.5601,140.43,140.38,3.561]
[1723751605067,3.5601,140.43,140.37,31.01]
[1723751605068,1.6165,140.54,140.39,31.01]
[1723751605256,1.6165,140.54,140.41,31.01]
[1723751605452,1.6165,140.54,140.42,3.5599]
[1723751605757,0.05067654,140.46,140.44,0.05464723]
[1723751605957,3.5601,140.43,140.38,3.5611]
[1723751606156,34.69340675,140.46,140.35,31.01]
[1723751606559,34.64273021,140.46,140.34,3.562]
[1723751606868,31.01,140.44,140.33,31.01]
[1723751607067,3.5614,140.38,140.33,34.5723]
[1723751607276,31.01,140.44,140.33,31.01]
[1723751607564,3.5616,140.37,140.32,3.5625]
[1723751607961,0.04721175,140.41,140.32,31.01]
[1723751608170,0.04721175,140.41,140.35,31.01]
[1723751608468,3.5889252,140.48,140.38,31.01]
[1723751608668,0.04687518,140.39,140.38,31.01]
[1723751609064,1.6116,140.51,140.42,0.04945158]
[1723751609273,3.5597,140.44,140.42,0.04945158]
[1723751609569,31.01,140.5,140.37,31.01]
[1723751609764,3.5599,140.44,140.39,3.5608]
[1723751610065,3.5311979,140.49,140.37,31.01]
[1723751610270,1.6116,140.51,140.45,0.17]
[1723751610665,0.55984529,140.55,140.45,0.17]
[1723751611071,0.05272954,140.49,140.47,0.05166276]
[1723751611575,0.55984529,140.55,140.47,0.05166276]
[1723751611774,0.0546669,140.49,140.47,0.05166276]
[1723751612166,0.55984529,140.55,140.47,0.05166276]
[1723751612370,0.05104475,140.49,140.47,31.06166276]
[1723751612576,0.05104475,140.49,140.47,34.62056276]
[1723751612775,0.55984529,140.55,140.47,0.05166276]
[1723751613273,0.05250745,140.49,140.47,0.05166276]
[1723751613466,0.55984529,140.55,140.47,31.06166276]
[1723751613672,3.5577,140.52,140.47,3.61056276]
[1723751613873,0.55984529,140.55,140.47,0.05166276]
[1723751614180,3.5581,140.51,140.47,0.05166276]
[1723751614378,3.06835499,140.51,140.47,0.05166276]
[1723751614674,3.5578,140.52,140.47,3.61036276]
[1723751614877,1.13473349,140.54,140.47,3.61036276]
[1723751615175,3.5579,140.52,140.47,3.61036276]
[1723751615374,1.13473349,140.54,140.47,0.05166276]
[1723751615574,0.04747671,140.52,140.47,0.05166276]
[1723751615767,3.5587,140.48,140.47,0.05166276]
[1723751615965,31.05747671,140.52,140.45,0.17]
[1723751616172,31.01,140.52,140.45,0.17]
[1723751616375,3.559,140.47,140.45,0.17]
[1723751616570,31.01,140.52,140.45,0.17]
[1723751616973,3.5592,140.46,140.45,0.17]
[1723751617975,0.04681456,140.47,140.45,0.17]
[1723751618477,31.01,140.52,140.45,0.17]
[1723751618680,0.04786066,140.47,140.45,0.21618844]
[1723751618877,31.01,140.52,140.45,0.21618844]
[1723751619075,3.5592,140.46,140.45,0.21618844]
[1723751619582,3.5589,140.47,140.45,0.21618844]
[1723751619876,3.61307186,140.47,140.45,0.21618844]
[1723751620082,0.05417186,140.47,140.45,0.21618844]
[1723751620484,0.05417186,140.47,140.46,3.5592]
[1723751621179,1.13473349,140.54,140.45,0.21618844]
[1723751621380,0.55984529,140.55,140.48,31.01]
[1723751621575,0.55984529,140.55,140.45,31.18]
[1723751621783,0.55984529,140.55,140.45,0.17]
[1723751622480,3.5585,140.49,140.45,0.17]
[1723751622682,0.04910251,140.51,140.45,0.17]
[1723751622870,0.04910251,140.51,140.49,0.04828977]
[1723751623183,31.01,140.5,140.38,31.01]
[1723751623695,3.62337653,140.49,140.4,31.01]
[1723751623987,1.0,140.5,140.4,31.01]
[1723751624185,0.4958371,140.5,140.4,31.01]
[1723751624379,31.01,140.54,140.52,0.39181711]
[1723751624678,0.06430498,140.55,140.43,31.01]
[1723751625275,3.5582,140.5,140.45,3.5592]
[1723751625482,0.06430498,140.55,140.46,0.04570618]
[1723751625670,0.06430498,140.55,140.45,31.01]
[1723751625872,0.06430498,140.55,140.49,0.04511396]
[1723751626075,0.04585173,140.52,140.49,0.04511396]
[1723751626274,31.01,140.54,140.41,31.01]
[1723751626483,3.5592,140.46,140.41,34.5703]
[1723751626878,31.01,140.52,140.41,31.01]
[1723751627184,31.01,140.5,140.38,31.01]
[1723751627381,3.5592,140.46,140.45,0.0545901]
[1723751628182,3.5602,140.42,140.38,31.01]
[1723751628685,3.50015404,140.47,140.38,34.5711]
[1723751628884,31.01,140.45,140.11,3.21071187]
[1723751629086,31.01,140.45,140.34,31.01]
[1723751629387,4.63858022,140.45,140.36,31.01]
[1723751629575,43.71,140.5,140.38,3.5611]
[1723751629781,3.62220054,140.5,140.39,31.01]
[1723751629977,0.04868845,140.41,140.39,31.01]
[1723751630179,0.04868845,140.41,140.4,3.5607]
[1723751630381,3.5593,140.46,140.39,31.01]
[1723751630586,3.55061836,140.5,140.42,31.01]
[1723751630781,43.71,140.54,140.42,31.01]
[1723751631089,0.05359145,140.42,140.39,31.0648127]
[1723751631384,3.5734107,140.47,140.37,31.01]
[1723751631580,0.05154389,140.42,140.39,0.04634394]
[1723751632083,3.5609,140.4,140.39,0.04634394]
[1723751633981,3.5605,140.41,140.39,0.04634394]
[1723751634186,0.05154389,140.42,140.39,0.04634394]
[1723751634785,0.05154389,140.42,140.39,31.05634394]
[1723751635089,0.05154389,140.42,140.4,3.5605]
[1723751635387,0.05154389,140.42,140.39,31.05634394]
[1723751635879,0.05154389,140.42,140.39,0.04634394]
[1723751636593,3.5607,140.4,140.39,0.04634394]
[1723751637084,3.5619,140.36,140.32,3.5625]
[1723751637479,31.06154389,140.42,140.32,3.5625]
[1723751637681,31.01,140.42,140.31,3.5628]
[1723751638394,0.04987034,140.38,140.35,0.04541807]
[1723751638781,3.5619,140.36,140.35,0.04541807]
[1723751640194,3.20682802,140.36,140.35,0.04541807]
[1723751640584,3.58363989,140.36,140.27,31.01]
[1723751640888,31.01,140.38,140.26,3.5641]
[1723751641088,3.61213518,140.38,140.29,31.01]
[1723751641393,31.01,140.4,140.29,31.01]
[1723751641796,0.04798809,140.36,140.33,0.054685]
[1723751641998,3.53153824,140.36,140.33,0.054685]
[1723751642187,0.04798809,140.36,140.33,0.054685]
[1723751642492,3.5531584,140.35,140.33,0.054685]
[1723751642690,3.5622,140.34,140.33,0.054685]
[1723751642895,7.19123035,140.34,140.33,0.054685]
[1723751643081,0.04798809,140.36,140.25,3.64042895]
[1723751643392,3.48939746,140.36,140.28,3.5637]
[1723751643593,31.01,140.38,140.26,31.01]
[1723751643793,3.563,140.32,140.27,3.5639]
[1723751643996,3.563,140.32,140.26,31.01]
[1723751644185,3.563,140.32,140.25,3.60587694]
[1723751644186,0.04597375,140.31,140.28,31.05850674]
[1723751644387,31.01,140.43,140.28,31.01]
[1723751644591,228.0,140.44,140.32,31.01]
[1723751644890,228.0,140.44,140.34,3.5622]
[1723751645100,31.01,140.45,140.32,31.01]
[1723751645594,0.04608626,140.4,140.37,0.05233254]
[1723751645992,3.5611,140.39,140.37,0.05233254]
[1723751646491,0.04608626,140.4,140.37,0.05233254]
[1723751646797,3.64463674,140.39,140.37,0.05233254]
[1723751647098,3.57127391,140.39,140.31,11.9]
[1723751647301,31.01,140.38,140.28,31.01]
[1723751647490,3.563,140.31,140.25,34.57486357]
[1723751647793,32.3336,140.45,140.22,31.01]
[1723751647794,31.01,140.35,140.22,31.01]
[1723751648400,3.60976528,140.3,140.27,0.05325908]
[1723751648895,3.5637,140.28,140.27,0.05325908]
[1723751649902,0.04636528,140.3,140.27,0.05325908]
[1723751650387,3.5612,140.38,140.34,3.5621]
[1723751650589,31.01,140.45,140.33,31.01]
[1723751651389,31.01,140.45,140.34,3.5621]
[1723751651594,31.01,140.45,140.33,31.01]
[1723751651802,4.4788,140.46,140.33,34.63721454]
[1723751651997,0.05016661,140.4,140.38,0.04859387]
[1723751652692,3.0614,140.46,140.38,0.04859387]
[1723751653098,3.60896247,140.4,140.38,0.04859387]
[1723751653396,3.5609,140.4,140.38,0.04859387]
[1723751653700,3.5609,140.39,140.38,0.04859387]
[1723751653898,3.47425899,140.39,140.28,42.51]
[1723751654193,31.01,140.42,140.32,3.5627]
[1723751654194,3.5619,140.36,140.32,3.5627]
[1723751654795,3.50844604,140.39,140.28,42.51]
[1723751654997,0.0532042,140.35,140.33,0.04664381]
[1723751655201,3.5622,140.34,140.3,3.5631]
[1723751655402,31.01,140.39,140.33,0.05165483]
[1723751655701,0.04841399,140.35,140.28,11.5]
[1723751655897,3.5626,140.33,140.29,3.5634]
[1723751656100,31.05841399,140.35,140.3,0.05082346]
[1723751656300,3.563,140.31,140.3,0.05082346]
[1723751656491,31.01,140.35,140.24,3.5646]
[1723751656694,0.05024699,140.32,140.29,0.05350202]
[1723751656990,3.5632,140.3,140.29,0.05350202]
[1723751657194,0.05024699,140.32,140.29,0.05350202]
[1723751658397,0.05024699,140.32,140.3,3.563]
[1723751658810,0.05024699,140.32,140.29,0.05350202]
[1723751659401,0.05024699,140.32,140.29,3.61680202]
[1723751659895,0.05024699,140.32,140.29,0.05350202]
[1723751660503,3.61294699,140.32,140.29,0.05350202]
[1723751660712,3.58572797,140.31,140.29,0.05350202]
[1723751661008,0.05024699,140.32,140.29,0.05350202]
[1723751661204,3.5821654,140.31,140.29,0.05350202]
[1723751661601,0.05024699,140.32,140.29,0.05350202]
[1723751662003,3.64289208,140.31,140.29,0.05350202]
[1723751662204,3.5631,140.31,140.29,0.05350202]
[1723751663113,0.05024699,140.32,140.29,0.05350202]
[1723751663704,3.54704526,140.31,140.29,0.05350202]
[1723751663904,3.63540962,140.3,140.29,0.05350202]
[1723751664105,0.05024699,140.32,140.29,0.05350202]
[1723751664610,3.61294699,140.32,140.29,0.05350202]
[1723751664810,0.05024699,140.32,140.29,0.05350202]
[1723751665201,3.563,140.31,140.29,0.05350202]
[1723751665410,0.05024699,140.32,140.29,0.05350202]
[1723751665609,3.5632,140.3,140.29,0.05350202]
[1723751665810,7.12414126,140.3,140.29,0.05350202]
[1723751666306,3.56094126,140.3,140.21,42.13]
[1723751666505,0.05024699,140.32,140.21,42.13]
[1723751666705,3.5634,140.3,140.26,3.5641]
[1723751667012,3.59977883,140.31,140.26,3.5641]
[1723751667207,3.563,140.31,140.27,3.5638]
[1723751667415,31.01,140.35,140.27,3.5638]
[1723751667610,0.04860299,140.3,140.27,3.61858838]
[1723751667810,3.61190299,140.3,140.27,0.05478838]
[1723751668108,0.04860299,140.3,140.27,0.05478838]
[1723751668314,3.61190299,140.3,140.27,3.61878838]
[1723751668612,0.04860299,140.3,140.27,3.61878838]
[1723751668911,3.61200299,140.3,140.27,0.05478838]
[1723751669104,0.04860299,140.3,140.27,0.05478838]
[1723751669502,0.04860299,140.3,140.27,3.61858838]
[1723751669707,0.04860299,140.3,140.27,0.05478838]
[1723751670205,31.01,140.4,140.26,31.01]
[1723751670714,3.5622,140.34,140.3,3.563]
[1723751671216,31.01,140.4,140.31,0.04689907]
[1723751671217,0.04658825,140.33,140.31,0.04689907]
[1723751671616,3.562,140.35,140.31,3.5629]
[1723751671821,0.05162864,140.33,140.31,0.04873709]
[1723751672314,31.01,140.35,140.26,3.5642]
[1723751672613,3.5627,140.32,140.31,0.04551217]
[1723751672820,0.0505731,140.33,140.31,0.04551217]
[1723751673123,0.0505731,140.33,140.26,34.53597815]
[1723751673310,0.0505731,140.33,140.31,0.04561191]
[1723751673710,0.0505731,140.33,140.26,31.01]
[1723751673711,3.5634,140.3,140.26,3.5642]
[1723751674117,0.0505731,140.33,140.24,3.61326366]
[1723751674420,0.0505731,140.33,140.26,3.5642]
[1723751674625,31.01,140.35,140.31,0.04973675]
[1723751674921,31.01,140.35,140.23,31.01]
[1723751675125,0.04558035,140.31,140.26,31.01]
[1723751675318,0.04558035,140.31,140.26,34.62474376]
[1723751675614,0.04558035,140.31,140.27,0.05284173]
[1723751678017,0.04558035,140.31,140.28,3.5635]
[1723751678319,0.04558035,140.31,140.27,0.05284173]
[1723751678722,3.5637,140.28,140.27,0.05284173]
[1723751680320,0.05297635,140.29,140.27,0.05284173]
[1723751680820,3.5637,140.28,140.27,0.05284173]
[1723751681318,0.05297635,140.29,140.27,0.05284173]
[1723751682122,2.851,140.28,140.27,0.05284173]
[1723751683616,31.06297635,140.29,140.19,1.4084]
[1723751684118,2.852,140.23,140.19,1.4084]
[1723751684317,2.852,140.23,140.19,4.2611]
[1723751684518,2.852,140.23,140.19,2.8527]
[1723751684918,0.05473559,140.22,140.2,0.0456484]
[1723751685126,2.90703559,140.22,140.2,0.0456484]
[1723751685328,0.05473559,140.22,140.2,0.0456484]
[1723751686125,0.05473559,140.22,140.2,2.8981484]
[1723751686323,0.05473559,140.22,140.2,0.0456484]
[1723751687024,0.05473559,140.22,140.21,2.8524]
[1723751687235,1.7856,140.32,140.21,31.01]
[1723751687525,31.01,140.31,140.21,31.01]
[1723751687826,31.01,140.29,140.19,31.01]
[1723751688426,0.04604977,140.25,140.19,31.01]
[1723751688731,0.04604977,140.25,140.23,2.90478106]
[1723751689434,0.04604977,140.25,140.23,0.05288106]
[1723751689637,2.8518,140.24,140.23,0.05288106]
[1723751690222,2.89784977,140.25,140.23,0.05288106]
[1723751690528,0.04604977,140.25,140.23,0.05288106]
[1723751690729,2.8518,140.24,140.23,0.05288106]
[1723751692027,0.04604977,140.25,140.15,25.67]
[1723751692230,0.04604977,140.25,140.14,9.98]
[1723751692433,29.25456734,140.26,140.14,9.98]
[1723751692630,29.25456734,140.26,140.16,2.8533]
[1723751693235,2.8526,140.2,140.16,2.8533]
[1723751693728,2.8526,140.2,140.17,0.05461827]
[1723751694332,2.8528,140.19,140.17,0.05461827]
[1723751694539,0.05430335,140.22,140.17,0.05461827]
[1723751695642,25.67,140.21,140.17,0.05461827]
[1723751695832,25.67,140.21,140.1,70.41379204]
[1723751696541,25.67,140.19,140.06,25.67]
[1723751696734,25.67,140.19,140.08,25.67]
[1723751696935,3.60047873,140.18,140.08,29.28867377]
[1723751697135,25.67,140.21,140.08,29.28867377]
[1723751697341,2.90693884,140.15,140.12,2.90788087]
[1723751697535,2.90693884,140.15,140.12,0.05368087]
[1723751697845,25.67,140.21,140.1,25.67]
[1723751698041,1.726,140.22,140.1,25.67]
[1723751698341,0.04611888,140.15,140.12,0.04993815]
[1723751698644,2.89991888,140.15,140.12,0.04993815]
[1723751698834,3.49166521,140.18,140.1,25.67]